fUSD/lending_fUSD_20260322
["ID","MTS","AMOUNT","RATE_DAILY","PERIOD"]
[408734972,1774181449342,-1120.27238139,0.00034986,2]
[408734973,1774181449352,-151.0,0.00034997,14]
[408734974,1774181449361,-233.44865962,0.00035,30]
[408734975,1774181449371,-1165.76431781,0.00035,30]
[408734976,1774181449381,-1851.1161255,0.00035,30]
[408734977,1774181449390,-200.0,0.00035,3]
[408734978,1774181449399,-7345.01451652,0.00035004,2]
[408734979,1774181449409,-161.0,0.0003504,11]
[408734980,1774181449418,-222.60723059,0.000351,30]
[408734981,1774181449428,-970.12,0.000351,2]
[408734982,1774181449437,-337.7,0.00035198,120]
[408734983,1774181449447,-200.0,0.00035202,2]
[408734984,1774181449457,-150.0,0.00035202,2]
[408734985,1774181449466,-150.147,0.00035202,2]
[408734986,1774181449476,-150.097,0.00035202,2]
[408734987,1774181449485,-276.495,0.00035202,2]
[408734988,1774181449495,-150.064,0.00035202,2]
[408734989,1774181449504,-150.0,0.00035202,2]
[408734990,1774181449514,-150.0,0.00035202,2]
[408734991,1774181449523,-150.114,0.00035202,2]
[408734992,1774181449533,-150.0,0.00035202,2]
[408734993,1774181449543,-621.0,0.00035202,2]
[408734994,1774181449552,-875.0,0.00035304,2]
[408734995,1774181449561,-725.96,0.00035328,2]
[408734996,1774181449571,-848.22,0.000354,30]
[408734997,1774181449580,-979.55,0.000354,30]
[408734998,1774181449590,-227.11,0.00035413,2]
[408734999,1774181449599,-908.39,0.00035413,2]
[408735000,1774181449608,-215.88,0.00035413,2]
[408735001,1774181449618,-337.7,0.00035472,120]
[408735002,1774181449627,-302.0,0.00035528,30]
[408735003,1774181449636,-250.0,0.00035531,38]
[408735004,1774181449646,-471.80860517,0.00035589,120]
[408735005,1774181449655,-230.49652556,0.00035589,120]
[408735006,1774181449665,-150.0,0.00035616,120]
[408735007,1774181449675,-500.0,0.00035616,7]
[408735008,1774181449685,-500.0,0.00035616,7]
[408735009,1774181449695,-500.0,0.00035616,7]
[408735010,1774181449704,-500.0,0.00035616,7]
[408735011,1774181449713,-500.0,0.00035616,7]
[408735012,1774181449722,-500.0,0.00035616,7]
[408735013,1774181449731,-500.0,0.00035616,7]
[408735014,1774181449740,-500.0,0.00035616,7]
[408735015,1774181449750,-279.04560912,0.00035616,7]
[408735016,1774181449760,-500.0,0.00035616,7]
[408735017,1774181449769,-500.0,0.00035616,7]
[408735018,1774181449778,-500.0,0.00035616,7]
[408735019,1774181449787,-500.0,0.00035616,7]
[408735020,1774181449797,-500.0,0.00035616,7]
[408735021,1774181449806,-500.0,0.00035616,7]
[408735022,1774181449816,-500.0,0.00035616,7]
[408735023,1774181449825,-1444.53146129,0.00035616,7]
[408735024,1774181449839,-1444.53146129,0.00035616,7]
[408735025,1774181449848,-1444.53146129,0.00035616,7]
[408735026,1774181449857,-1444.53146129,0.00035616,7]
[408735027,1774181449867,-1444.53146129,0.00035616,7]
[408735028,1774181449876,-1444.53146129,0.00035616,7]
[408735029,1774181449885,-1444.53146129,0.00035616,7]
[408735030,1774181449894,-1444.53146129,0.00035616,7]
[408735031,1774181449904,-1444.53146129,0.00035616,7]
[408735032,1774181449914,-1444.53146129,0.00035616,7]
[408735033,1774181449923,-1733.43775355,0.00035616,7]
[408735034,1774181449933,-1733.43775355,0.00035616,7]
[408735035,1774181449942,-874.41,0.00035616,2]
[408735036,1774181449952,-204.301058,0.00035616,7]
[408735037,1774181449962,-204.301058,0.00035616,7]
[408735038,1774181449971,-204.301058,0.00035616,7]
[408735039,1774181449981,-204.301058,0.00035616,7]
[408735040,1774181449990,-4248.019,0.00035719,43]
[408735041,1774181450000,-154.904,0.00035719,43]
[408735042,1774181450010,-337.7,0.00035746,120]
[408735043,1774181450020,-745.65223616,0.00035812,2]
[408735044,1774181450030,-426.73483,0.00035888,30]
[408735045,1774181450043,-190.82957068,0.00036,120]
[408735046,1774181450052,-58648.31,0.00036,7]
[408735047,1774181450062,-500.0,0.00036,120]
[408735048,1774181450071,-337.7,0.0003602,120]
[408735049,1774181450081,-426.73483,0.00036088,30]
[408735050,1774181450091,-1093.0,0.0003611,5]
[408735051,1774181450100,-150.0,0.00036164,120]
[408735052,1774181450110,-426.73483,0.00036288,30]
[408735053,1774181450120,-337.7,0.00036294,120]
[408735054,1774181450130,-870.0,0.00036412,120]
[408735055,1774181450368,-150.0,0.0003643,2]
[408735056,1774181450408,-426.73483,0.00036488,30]
[408735057,1774181450417,-302.0,0.00036528,30]
[408735058,1774181450427,-150.0,0.0003654,7]
[408735059,1774181450436,-163.611,0.0003654,7]
[408735060,1774181450446,-337.7,0.00036568,120]
[408735061,1774181450456,-426.73483,0.00036688,30]
[408735062,1774181450465,-150.0,0.00036712,120]
[408735063,1774181450474,-169.90912624,0.00036792,2]
[408735064,1774181450483,-970.12,0.000368,2]
[408735065,1774181450493,-337.87,0.00036842,120]
[408735066,1774181450503,-150.0,0.00036846,30]
[408735067,1774181450512,-174.0,0.00036846,30]
[408735068,1774181450521,-510.0,0.00036846,22]
[408735069,1774181450531,-426.73483,0.00036888,30]
[408735070,1774181450541,-208.0,0.0003689,30]
[408735071,1774181450550,-174.0,0.000369,120]
[408735072,1774181450559,-175.0,0.000369,120]
[408735073,1774181450568,-1093.0,0.00036916,5]
[408735074,1774181450579,-426.73483,0.00037088,30]
[408735075,1774181450588,-150.0,0.0003726,120]
[408735076,1774181450598,-1103.5,0.00037273,30]
[408735077,1774181450608,-581.3,0.00037273,30]
[408735078,1774181450619,-486.45,0.00037273,30]
[408735079,1774181450628,-426.73483,0.00037288,30]
[408735080,1774181450639,-426.73483,0.00037488,30]
[408735081,1774181450648,-725.96,0.00037491,2]
[408735082,1774181450658,-3514.0,0.00037502,2]
[408735083,1774181450668,-1345.0,0.00037502,2]
[408735084,1774181450677,-1261.0,0.00037502,2]
[408735085,1774181450687,-302.0,0.00037528,30]
[408735086,1774181450696,-426.73483,0.00037688,30]
[408735087,1774181450705,-2000.0,0.000377,2]
[408735088,1774181450715,-250.0,0.00037714,7]
[408735089,1774181450725,-250.0,0.00037714,7]
[408735090,1774181450745,-250.0,0.00037714,7]
[408735091,1774181450757,-1093.0,0.00037722,7]
[408735092,1774181450767,-1215.0,0.00037738,2]
[408735093,1774181450777,-924.0,0.00037738,2]
[408735094,1774181450787,-6008.0,0.00037738,2]
[408735095,1774181450797,-2466.0,0.00037738,2]
[408735096,1774181450807,-150.0,0.00037808,120]
[408735097,1774181450817,-426.73483,0.00037888,30]
[408735098,1774181450827,-753.63008624,0.000379,120]
[408735099,1774181450837,-156.8283,0.000379,2]
[408735100,1774181450847,-476.06,0.00038,30]
[408735101,1774181450857,-848.22,0.00038,30]
[408735102,1774181450867,-979.55,0.00038,30]
[408735103,1774181450877,-954.45,0.00038,30]
[408735104,1774181450887,-500.0,0.00038,120]
[408735105,1774181450897,-212.41,0.00038014,120]
[408735106,1774181450907,-3511.89,0.00038034,30]
[408735107,1774181450917,-296.33,0.00038034,30]
[408735108,1774181450927,-426.73483,0.00038088,30]
[408735109,1774181450936,-305.51734344,0.000381,33]
[408735110,1774181450946,-150.0,0.00038202,2]
[408735111,1774181450956,-150.0,0.00038202,2]
[408735112,1774181450966,-150.0,0.00038202,2]
[408735113,1774181450976,-150.0,0.00038202,2]
[408735114,1774181450986,-150.0,0.00038202,2]
[408735115,1774181450995,-150.0,0.00038202,2]
[408735116,1774181451005,-150.0,0.00038202,2]
[408735117,1774181451015,-150.0,0.00038202,2]
[408735118,1774181451026,-150.0,0.00038202,2]
[408735119,1774181451036,-621.0,0.00038202,2]
[408735120,1774181451046,-870.0,0.00038233,120]
[408735121,1774181451056,-150.0,0.00038252,2]
[408735122,1774181451067,-426.73483,0.00038288,30]
[408735123,1774181451077,-212.0,0.000383,56]
[408735124,1774181451087,-217.56047974,0.00038329,120]
[408735125,1774181451098,-262.46146293,0.00038356,120]
[408735126,1774181451108,-150.0,0.00038356,5]
[408735127,1774181451118,-191.0,0.0003838,5]
[408735128,1774181451130,-7345.01451652,0.0003841,2]
[408735129,1774181451140,-426.73483,0.00038488,30]
[408735130,1774181451150,-1422.4494,0.000385,7]
[408735131,1774181451161,-1093.0,0.00038528,7]
[408735132,1774181451171,-302.0,0.00038528,30]
[408735133,1774181451180,-151.0,0.00038551,120]
[408735134,1774181451190,-151.0,0.00038551,120]
[408735135,1774181451200,-773.2413689,0.00038551,2]
[408735136,1774181451211,-1299.86828,0.000386,120]
[408735137,1774181451220,-20000.0,0.000386,120]
[408735138,1774181451230,-768.740092,0.000386,120]
[408735139,1774181451242,-151.0,0.000386,120]
[408735140,1774181451255,-768.740092,0.000386,120]
[408735141,1774181451264,-768.740092,0.000386,120]
[408735142,1774181451275,-151.0,0.000386,120]
[408735143,1774181451285,-151.0,0.000386,120]
[408735144,1774181451295,-768.740092,0.000386,120]
[408735145,1774181451304,-151.0,0.000386,120]
[408735146,1774181451314,-152.0,0.00038643,3]
[408735147,1774181451324,-520.83,0.00038667,2]
[408735148,1774181451334,-426.73483,0.00038688,30]
[408735149,1774181451344,-500.0,0.000387,120]
[408735150,1774181451354,-174.0,0.00038745,120]
[408735151,1774181451364,-175.0,0.00038745,120]
[408735152,1774181451374,-500.0,0.00038751,120]
[408735153,1774181451384,-357.88,0.00038779,90]
[408735154,1774181451395,-1000.0,0.000388,20]
[408735155,1774181451404,-151.0,0.000388,30]
[408735156,1774181451413,-151.0,0.000388,30]
[408735157,1774181451422,-151.0,0.000388,120]
[408735158,1774181451432,-151.0,0.000388,120]
[408735159,1774181451443,-152.65683744,0.00038865,60]
[408735160,1774181451454,-535.0901515,0.00038865,60]
[408735161,1774181451464,-250.0,0.00038902,55]
[408735162,1774181451475,-250.0,0.00038904,5]
[408735163,1774181451485,-208.0,0.0003891,30]
[408735164,1774181451495,-500.0,0.00038999,120]
[408735165,1774181451505,-229.59071084,0.00038999,30]
[408735166,1774181451515,-165.06944682,0.00039,120]
[408735167,1774181451524,-428.48928638,0.00039,120]
[408735168,1774181451534,-168.21,0.00039,120]
[408735169,1774181451545,-426.73483,0.00039088,30]
[408735170,1774181451555,-227.11,0.00039134,2]
[408735171,1774181451566,-908.39,0.00039134,2]
[408735172,1774181451575,-215.88,0.00039134,2]
[408735173,1774181451585,-520.83,0.00039189,2]
[408735174,1774181451594,-520.83,0.00039189,2]
[408735175,1774181451604,-520.83,0.00039189,2]
[408735176,1774181451613,-520.83,0.00039189,2]
[408735177,1774181451623,-520.95,0.00039189,2]
[408735178,1774181451633,-416.89,0.00039191,7]
[408735179,1774181451642,-426.73483,0.00039288,30]
[408735180,1774181451652,-150.0,0.000393,59]
[408735181,1774181451661,-151.0,0.000393,60]
[408735182,1774181451671,-462.408582,0.000393,120]
[408735183,1774181451680,-462.408582,0.000393,120]
[408735184,1774181451690,-462.408582,0.000393,120]
[408735185,1774181451699,-151.0,0.000393,120]
[408735186,1774181451709,-462.408582,0.000393,120]
[408735187,1774181451718,-225.228711,0.000393,120]
[408735188,1774181451728,-151.0,0.000393,120]
[408735189,1774181451738,-151.0,0.000393,120]
[408735190,1774181451749,-151.0,0.000393,120]
[408735191,1774181451758,-151.0,0.000393,120]
[408735192,1774181451768,-151.0,0.000393,120]
[408735193,1774181451777,-151.0,0.000393,120]
[408735194,1774181451787,-151.0,0.000393,120]
[408735195,1774181451797,-151.0,0.000393,120]
[408735196,1774181451806,-1093.0,0.00039335,7]
[408735197,1774181451816,-510.0,0.00039385,24]
[408735198,1774181451826,-306.11335943,0.00039452,5]
[408735199,1774181451835,-426.73483,0.00039488,30]
[408735200,1774181451845,-302.0,0.00039528,30]
[408735201,1774181451856,-30000.0,0.000396,120]
[408735202,1774181451865,-725.96,0.00039654,2]
[408735203,1774181451875,-426.73483,0.00039688,30]
[408735204,1774181451885,-1990.0,0.00039726,120]
[408735205,1774181451895,-426.73483,0.00039888,30]
[408735206,1774181451905,-2805.21311167,0.0004,120]
[408735207,1774181451915,-3603.021285,0.0004,100]
[408735208,1774181451924,-160.0,0.0004,120]
[408735209,1774181451933,-285.29155674,0.0004,60]
[408735210,1774181451943,-500.0,0.0004,2]
[408735211,1774181451952,-155.48580031,0.0004,120]
[408735212,1774181451962,-1312.14697436,0.0004,120]
[408735213,1774181451971,-156.0,0.0004,120]
[408735214,1774181451981,-152.0,0.0004,120]
[408735215,1774181451990,-979.16666667,0.0004,30]
[408735216,1774181451999,-979.16666667,0.0004,120]
[408735217,1774181452008,-1990.0,0.0004,120]
[408735218,1774181452019,-500.0,0.0004,120]
[408735219,1774181452028,-426.73483,0.00040088,30]
[408735220,1774181452038,-500.0,0.00040128,120]
[408735221,1774181452048,-1093.0,0.00040141,30]
[408735222,1774181452057,-870.0,0.00040144,120]
[408735223,1774181452067,-150.0,0.00040165,2]
[408735224,1774181452076,-1990.0,0.00040273,120]
[408735225,1774181452086,-426.73483,0.00040288,30]
[408735226,1774181452097,-150.0,0.000403,62]
[408735227,1774181452108,-1696.0,0.00040345,11]
[408735228,1774181452119,-159.82,0.00040374,2]
[408735229,1774181452128,-1964.7587665,0.000404,120]
[408735230,1774181452138,-864.26767002,0.000404,120]
[408735231,1774181452148,-500.0,0.00040442,120]
[408735232,1774181452158,-500.0,0.00040442,120]
[408735233,1774181452168,-426.73483,0.00040488,30]
[408735234,1774181452178,-35839.68508515,0.000405,120]
[408735235,1774181452187,-3514.0,0.00040502,2]
[408735236,1774181452197,-1345.0,0.00040502,2]
[408735237,1774181452207,-1261.0,0.00040502,2]
[408735238,1774181452218,-1990.0,0.00040547,120]
[408735239,1774181452227,-20000.0,0.000406,120]
[408735240,1774181452237,-174.0,0.00040682,120]
[408735241,1774181452250,-426.73483,0.00040688,30]
[408735242,1774181452259,-1215.0,0.00040738,2]
[408735243,1774181452269,-924.0,0.00040738,2]
[408735244,1774181452278,-6008.0,0.00040738,2]
[408735245,1774181452289,-2466.0,0.00040738,2]
[408735246,1774181452298,-4171.87812651,0.000408,60]
[408735247,1774181452308,-1990.0,0.00040821,120]
[408735248,1774181452318,-426.73483,0.00040888,30]
[408735249,1774181452328,-500.0,0.00040898,120]
[408735250,1774181452336,-713.0,0.000409,120]
[408735251,1774181452345,-208.0,0.0004093,30]
[408735252,1774181452354,-208.0,0.0004093,30]
[408735253,1774181452364,-1120.27238139,0.00040943,2]
[408735254,1774181452373,-151.0,0.00040947,14]
[408735255,1774181452383,-1093.0,0.00040947,30]
[408735256,1774181452392,-16579.0,0.0004095,60]
[408735257,1774181452401,-500.0,0.00040999,120]
[408735258,1774181452411,-3344.70943506,0.00041,30]
[408735259,1774181452420,-2699.0,0.00041,120]
[408735260,1774181452430,-10000.0,0.00041,120]
[408735261,1774181452439,-10000.0,0.00041,120]
[408735262,1774181452449,-10000.0,0.00041,120]
[408735263,1774181452458,-10000.0,0.00041,120]
[408735264,1774181452468,-10000.0,0.00041,120]
[408735265,1774181452478,-25700.0,0.00041,60]
[408735266,1774181452487,-3672.27783925,0.00041,30]
[408735267,1774181452496,-1046.00420368,0.00041,120]
[408735268,1774181452506,-162.0,0.00041,120]
[408735269,1774181452515,-2982.0,0.00041068,120]
[408735270,1774181452524,-2056.64411023,0.00041068,120]
[408735271,1774181452534,-616.99323307,0.00041068,120]
[408735272,1774181452543,-264.42567131,0.00041068,120]
[408735273,1774181452553,-1981.0,0.00041068,120]
[408735274,1774181452562,-1437.1,0.00041068,120]
[408735275,1774181452572,-2178.12991471,0.00041068,120]
[408735276,1774181452581,-426.73483,0.00041088,30]
[408735277,1774181452590,-270.0,0.00041096,2]
[408735278,1774181452600,-400.0,0.00041096,2]
[408735279,1774181452609,-400.0,0.00041096,2]
[408735280,1774181452618,-264.0,0.00041096,2]
[408735281,1774181452628,-150.0,0.00041096,2]
[408735282,1774181452637,-181.0,0.00041096,2]
[408735283,1774181452646,-400.0,0.00041096,2]
[408735284,1774181452656,-400.0,0.00041096,2]
[408735285,1774181452665,-292.0,0.00041096,2]
[408735286,1774181452674,-350.0,0.00041096,2]
[408735287,1774181452684,-350.0,0.00041096,2]
[408735288,1774181452693,-269.0,0.00041096,2]
[408735289,1774181452702,-150.0,0.00041096,10]
[408735290,1774181452712,-498.51,0.00041096,60]
[408735291,1774181452721,-217.47,0.00041096,60]
[408735292,1774181452730,-208.101972,0.00041096,120]
[408735293,1774181452740,-1147.0,0.00041096,60]
[408735294,1774181452749,-349.0,0.00041096,120]
[408735295,1774181452758,-292.30694738,0.000412,30]
[408735296,1774181452768,-979.16666667,0.000412,120]
[408735297,1774181452777,-150.0,0.00041202,2]
[408735298,1774181452787,-150.0,0.00041202,2]
[408735299,1774181452797,-150.0,0.00041202,2]
[408735300,1774181452806,-150.0,0.00041202,2]
[408735301,1774181452816,-150.0,0.00041202,2]
[408735302,1774181452943,-150.0,0.00041202,2]
[408735303,1774181452953,-150.0,0.00041202,2]
[408735304,1774181452963,-150.0,0.00041202,2]
[408735305,1774181452972,-250.0,0.00041207,90]
[408735306,1774181452981,-2403.0,0.0004127,11]
[408735307,1774181452990,-426.73483,0.00041288,30]
[408735308,1774181453000,-801.85129955,0.0004129,2]
[408735309,1774181453009,-150.0,0.000413,65]
[408735310,1774181453018,-221.45873841,0.00041315,60]
[408735311,1774181453028,-2000.0,0.000414,2]
[408735312,1774181453037,-426.73483,0.00041488,30]
[408735313,1774181453047,-152.0,0.000415,120]
[408735314,1774181453056,-255.44933533,0.000415,120]
[408735315,1774181453065,-250.0,0.00041644,10]
[408735316,1774181453075,-426.73483,0.00041688,30]
[408735317,1774181453084,-435.98,0.00041695,120]
[408735318,1774181453093,-364.83,0.00041695,120]
[408735319,1774181453103,-1093.0,0.00041753,30]
[408735320,1774181453112,-500.0,0.00041795,26]
[408735321,1774181453122,-532.79,0.00041795,26]
[408735322,1774181453131,-212.41,0.00041815,120]
[408735323,1774181453140,-725.96,0.00041817,30]
[408735324,1774181453150,-7345.01451652,0.00041817,15]
[408735325,1774181453159,-426.73483,0.00041888,30]
[408735326,1774181453169,-510.0,0.00041923,26]
[408735327,1774181453178,-151.0,0.00041997,14]
[408735328,1774181453188,-500.0,0.00041999,120]
[408735329,1774181453198,-1760.3,0.00042,120]
[408735330,1774181453208,-200000.0,0.00042,120]
[408735331,1774181453218,-2827.56362068,0.00042,120]
[408735332,1774181453227,-340.50514948,0.00042,120]
[408735333,1774181453236,-252.43015257,0.00042,30]
[408735334,1774181453246,-54232.30727604,0.00042,60]
[408735335,1774181453259,-1607.96181711,0.00042,14]
[408735336,1774181453268,-199.999999,0.00042,7]
[408735337,1774181453278,-500.0,0.00042,120]
[408735338,1774181453287,-300.00000008,0.00042,2]
[408735339,1774181453296,-154.84,0.00042,120]
[408735340,1774181453306,-256.0,0.00042,120]
[408735341,1774181453315,-573.0,0.00042,60]
[408735342,1774181453324,-892.3544652,0.00042,120]
[408735343,1774181453333,-151.0,0.00042,120]
[408735344,1774181453343,-151.0,0.00042,120]
[408735345,1774181453352,-151.0,0.00042,120]
[408735346,1774181453361,-373.26,0.00042,30]
[408735347,1774181453370,-151.0,0.00042,120]
[408735348,1774181453379,-151.0,0.00042,120]
[408735349,1774181453388,-157.125205,0.00042,120]
[408735350,1774181453397,-360.976367,0.00042,120]
[408735351,1774181453406,-360.976367,0.00042,120]
[408735352,1774181453415,-360.976367,0.00042,120]
[408735353,1774181453424,-360.976367,0.00042,120]
[408735354,1774181453434,-151.0,0.00042,120]
[408735355,1774181453443,-151.0,0.00042,120]
[408735356,1774181453452,-151.0,0.00042,120]
[408735357,1774181453462,-151.0,0.00042,120]
[408735358,1774181453471,-151.0,0.00042,120]
[408735359,1774181453480,-151.0,0.00042,120]
[408735360,1774181453489,-151.0,0.00042,120]
[408735361,1774181453498,-151.0,0.00042,120]
[408735362,1774181453507,-196.158797,0.00042,120]
[408735363,1774181453516,-155.405391,0.00042,120]
[408735364,1774181453525,-196.158797,0.00042,120]
[408735365,1774181453534,-155.405391,0.00042,120]
[408735366,1774181453543,-196.158797,0.00042,120]
[408735367,1774181453553,-155.405391,0.00042,120]
[408735368,1774181453562,-196.158797,0.00042,120]
[408735369,1774181453571,-155.405391,0.00042,120]
[408735370,1774181453580,-151.0,0.00042,7]
[408735371,1774181453589,-151.0,0.00042,7]
[408735372,1774181453598,-151.0,0.00042,7]
[408735373,1774181453607,-242.126351,0.00042,120]
[408735374,1774181453616,-242.126351,0.00042,120]
[408735375,1774181453625,-242.126351,0.00042,120]
[408735376,1774181453634,-242.126351,0.00042,120]
[408735377,1774181453643,-524.300108,0.00042,120]
[408735378,1774181453653,-524.300108,0.00042,120]
[408735379,1774181453662,-524.300108,0.00042,120]
[408735380,1774181453671,-524.300108,0.00042,120]
[408735381,1774181453680,-151.0,0.00042,120]
[408735382,1774181453689,-151.0,0.00042,120]
[408735383,1774181453698,-151.0,0.00042,14]
[408735384,1774181453707,-151.0,0.00042,14]
[408735385,1774181453717,-151.0,0.00042,14]
[408735386,1774181453726,-297.85656,0.00042,28]
[408735387,1774181453735,-297.85656,0.00042,28]
[408735388,1774181453744,-297.85656,0.00042,28]
[408735389,1774181453754,-297.85656,0.00042,28]
[408735390,1774181453763,-500.0,0.00042,120]
[408735391,1774181453772,-151.0,0.00042,120]
[408735392,1774181453782,-151.0,0.00042,120]
[408735393,1774181453791,-151.0,0.00042,120]
[408735394,1774181453800,-151.0,0.00042,120]
[408735395,1774181453809,-151.0,0.00042,120]
[408735396,1774181453819,-500.0,0.00042,120]
[408735397,1774181453828,-210.40762625,0.00042113,120]
[408735398,1774181453837,-870.0,0.00042152,120]
[408735399,1774181453847,-150.0,0.00042173,120]
[408735400,1774181453856,-350.0,0.00042192,10]
[408735401,1774181453865,-200.0,0.0004223,8]
[408735402,1774181453874,-200.0,0.00042285,8]
[408735403,1774181453883,-200.0,0.00042285,8]
[408735404,1774181453892,-200.0,0.00042286,8]
[408735405,1774181453901,-200.0,0.00042287,8]
[408735406,1774181453911,-200.0,0.00042288,8]
[408735407,1774181453920,-200.0,0.00042291,8]
[408735408,1774181453930,-150.0,0.000423,68]
[408735409,1774181453939,-156.0,0.000423,120]
[408735410,1774181453948,-16579.0,0.000423,60]
[408735411,1774181453957,-157.9962,0.000423,2]
[408735412,1774181453966,-200.0,0.00042302,8]
[408735413,1774181453976,-151.0,0.00042315,60]
[408735414,1774181453985,-151.5,0.00042322,2]
[408735415,1774181453994,-166.08424682,0.00042423,7]
[408735416,1774181454003,-250.0,0.00042428,30]
[408735417,1774181454012,-250.0,0.00042428,30]
[408735418,1774181454022,-250.0,0.00042428,30]
[408735419,1774181454031,-197.4935404,0.00042438,120]
[408735420,1774181454040,-500.0,0.00042438,120]
[408735421,1774181454049,-989.2423,0.00042451,2]
[408735422,1774181454059,-151.0,0.00042457,120]
[408735423,1774181454068,-151.0,0.00042457,120]
[408735424,1774181454078,-151.0,0.00042459,120]
[408735425,1774181454087,-151.0,0.00042459,120]
[408735426,1774181454096,-204.301058,0.00042459,120]
[408735427,1774181454106,-204.301058,0.00042459,120]
[408735428,1774181454115,-204.301058,0.00042459,120]
[408735429,1774181454124,-204.301058,0.00042459,120]
[408735430,1774181454134,-450.52075853,0.00042459,2]
[408735431,1774181454143,-472.61127528,0.00042459,2]
[408735432,1774181454152,-300.0,0.00042459,2]
[408735433,1774181454162,-300.0,0.00042459,2]
[408735434,1774181454171,-300.0,0.00042459,2]
[408735435,1774181454180,-301.000602,0.00042459,2]
[408735436,1774181454191,-300.0,0.00042459,2]
[408735437,1774181454200,-600.11635329,0.00042459,2]
[408735438,1774181454209,-300.0,0.00042459,2]
[408735439,1774181454218,-300.0,0.00042459,2]
[408735440,1774181454229,-555.90105714,0.00042459,2]
[408735441,1774181454238,-300.0,0.00042459,2]
[408735442,1774181454248,-300.0,0.00042459,2]
[408735443,1774181454261,-1138.86212569,0.00042459,2]
[408735444,1774181454271,-307.35924896,0.00042459,2]
[408735445,1774181454280,-300.0,0.00042459,2]
[408735446,1774181454289,-858.24055709,0.00042459,2]
[408735447,1774181454298,-300.0,0.00042459,2]
[408735448,1774181454308,-300.0,0.00042459,2]
[408735449,1774181454317,-300.0,0.00042459,2]
[408735450,1774181454326,-300.0,0.00042459,2]
[408735451,1774181454336,-308.63412797,0.00042459,2]
[408735452,1774181454345,-545.10359199,0.00042459,2]
[408735453,1774181454354,-300.0,0.00042459,2]
[408735454,1774181454363,-300.0,0.00042459,2]
[408735455,1774181454372,-460.5100828,0.00042459,2]
[408735456,1774181454381,-300.0,0.00042459,2]
[408735457,1774181454390,-300.0,0.00042459,2]
[408735458,1774181454399,-300.0,0.00042459,2]
[408735459,1774181454408,-448.59580951,0.00042459,2]
[408735460,1774181454419,-300.0,0.00042459,2]
[408735461,1774181454428,-300.0,0.00042459,2]
[408735462,1774181454437,-300.0,0.00042459,2]
[408735463,1774181454446,-300.0,0.00042459,2]
[408735464,1774181454455,-300.0,0.00042459,2]
[408735465,1774181454465,-520.90741423,0.00042459,2]
[408735466,1774181454474,-307.59307592,0.00042459,2]
[408735467,1774181454483,-300.0,0.00042459,2]
[408735468,1774181454492,-300.0,0.00042459,2]
[408735469,1774181454501,-525.1597541,0.00042459,2]
[408735470,1774181454510,-417.11348177,0.00042459,2]
[408735471,1774181454520,-300.0,0.00042459,2]